fUSD/lending_fUSD_20250602
["ID","MTS","AMOUNT","RATE_DAILY","PERIOD"]
[363841113,1748895044610,-176.040514,0.0002598,7]
[363841115,1748895044619,-721.727568,0.0002598,7]
[363841117,1748895044629,-721.727568,0.0002598,7]
[363841119,1748895044639,-151.0,0.0002598,7]
[363841121,1748895044648,-151.0,0.0002598,7]
[363841123,1748895044658,-151.0,0.0002598,7]
[363841125,1748895044667,-152.154369,0.0002598,7]
[363841127,1748895044677,-152.154369,0.0002598,7]
[363841129,1748895044686,-151.0,0.0002598,7]
[363841131,1748895044695,-151.0,0.0002598,2]
[363841133,1748895044704,-151.0,0.0002598,2]
[363841135,1748895044713,-151.0,0.0002598,2]
[363841137,1748895044723,-151.0,0.0002598,2]
[363841139,1748895044732,-151.0,0.0002598,2]
[363841141,1748895044742,-151.0,0.0002598,2]
[363841143,1748895044751,-151.0,0.0002598,2]
[363841145,1748895044760,-151.0,0.0002598,2]
[363841147,1748895044769,-151.0,0.0002598,2]
[363841148,1748895044778,-151.0,0.0002598,2]
[363841150,1748895044788,-151.0,0.0002598,2]
[363841152,1748895044797,-151.0,0.0002598,2]
[363841154,1748895044806,-151.0,0.0002598,2]
[363841156,1748895044815,-151.0,0.0002598,2]
[363841158,1748895044824,-151.0,0.0002598,2]
[363841160,1748895044834,-151.0,0.0002598,2]
[363841162,1748895044843,-151.0,0.0002598,2]
[363841164,1748895044852,-151.0,0.0002598,2]
[363841166,1748895044862,-151.0,0.0002598,2]
[363841168,1748895044871,-151.0,0.0002598,2]
[363841170,1748895044880,-151.0,0.0002598,2]
[363841172,1748895044890,-151.0,0.0002598,2]
[363841174,1748895044899,-151.0,0.0002598,2]
[363841176,1748895044909,-151.0,0.0002598,2]
[363841178,1748895044918,-151.0,0.0002598,2]
[363841180,1748895044929,-151.0,0.0002598,2]
[363841182,1748895044939,-151.0,0.0002598,2]
[363841184,1748895044948,-151.0,0.0002598,2]
[363841186,1748895044958,-151.0,0.0002598,2]
[363841188,1748895044967,-151.0,0.0002598,2]
[363841190,1748895044976,-151.0,0.0002598,2]
[363841192,1748895044987,-151.0,0.0002598,2]
[363841194,1748895044996,-151.0,0.0002598,2]
[363841196,1748895045006,-151.0,0.0002598,2]
[363841197,1748895045015,-213.925338,0.0002598,2]
[363841198,1748895045025,-1218.284469,0.0002598,7]
[363841199,1748895045034,-1218.284469,0.0002598,7]
[363841201,1748895045043,-151.929955,0.0002598,7]
[363841203,1748895045053,-367.84843,0.0002598,7]
[363841205,1748895045062,-367.84843,0.0002598,7]
[363841207,1748895045072,-1121.66877,0.0002598,7]
[363841209,1748895045081,-1121.66877,0.0002598,7]
[363841211,1748895045090,-28679.8070403,0.0002598,3]
[363841214,1748895045109,-41350.8179669,0.0002598,3]
[363841216,1748895045119,-908.0458191,0.0002598,2]
[363841218,1748895045128,-431.33,0.00025989,2]
[363841220,1748895045138,-151.0,0.0002599,7]
[363841222,1748895045148,-199.781702,0.0002599,7]
[363841224,1748895045157,-151.0,0.0002599,7]
[363841227,1748895045167,-151.0,0.0002599,7]
[363841229,1748895045178,-166.45536,0.0002599,7]
[363841230,1748895045188,-151.0,0.0002599,7]
[363841232,1748895045197,-151.0,0.0002599,7]
[363841235,1748895045207,-151.0,0.0002599,7]
[363841237,1748895045217,-1022.546757,0.0002599,7]
[363841239,1748895045227,-1022.546757,0.0002599,7]
[363841241,1748895045237,-151.0,0.0002599,7]
[363841243,1748895045247,-151.0,0.0002599,7]
[363841245,1748895045256,-2475.385225,0.0002599,7]
[363841247,1748895045266,-183.413195,0.0002599,7]
[363841249,1748895045276,-8244.59094,0.0002599,7]
[363841251,1748895045285,-183.413195,0.0002599,7]
[363841253,1748895045294,-8244.59094,0.0002599,7]
[363841255,1748895045304,-2475.385225,0.0002599,7]
[363841257,1748895045314,-151.0,0.0002599,7]
[363841259,1748895045323,-274.162833,0.0002599,7]
[363841261,1748895045333,-151.0,0.0002599,7]
[363841263,1748895045343,-274.162833,0.0002599,7]
[363841265,1748895045352,-151.0,0.0002599,7]
[363841267,1748895045361,-280.43296,0.0002599,7]
[363841269,1748895045371,-105045.937511,0.0002599,3]
[363841271,1748895045380,-280.43296,0.0002599,7]
[363841273,1748895045392,-57172.220542,0.0002599,3]
[363841274,1748895045404,-151.0,0.0002599,7]
[363841276,1748895045414,-151.0,0.0002599,7]
[363841279,1748895045424,-243.174419,0.0002599,7]
[363841280,1748895045437,-243.174419,0.0002599,7]
[363841282,1748895045446,-200.0,0.00025992,7]
[363841285,1748895045456,-271.804503,0.00025999,7]
[363841286,1748895045466,-151.0,0.00025999,7]
[363841289,1748895045475,-151.0,0.00025999,7]
[363841291,1748895045486,-151.0,0.00025999,7]
[363841293,1748895045495,-151.0,0.00025999,7]
[363841294,1748895045505,-152.154369,0.00025999,7]
[363841296,1748895045514,-152.154369,0.00025999,7]
[363841298,1748895045524,-151.0,0.00025999,7]
[363841300,1748895045534,-725.6902,0.00025999,7]
[363841364,1748895046295,460.0,0.00041095,120]
[363841367,1748895046366,460.0,0.00041095,120]
[363841368,1748895046721,-204.0,0.00021057,2]
[363841369,1748895046731,-177.488,0.00022333,2]
[363841370,1748895046740,-204.0,0.00023348,5]
[363841371,1748895046750,-1676.48518134,0.000248,2]
[363841372,1748895046760,-300.0,0.00024999,2]
[363841373,1748895046769,-204.0,0.00025639,8]
[363841374,1748895046778,-492.594269,0.00025999,7]
[363841375,1748895046786,-1218.284469,0.00025999,7]
[363841376,1748895046795,-367.84843,0.00025999,7]
[363841377,1748895046804,-367.84843,0.00025999,7]
[363841378,1748895046814,-1121.66877,0.00025999,7]
[363841379,1748895046823,-1121.66877,0.00025999,7]
[363841380,1748895046832,-151.0,0.00026,7]
[363841381,1748895046841,-177978.50038506,0.00026,7]
[363841382,1748895046851,-215.42087,0.00026,7]
[363841383,1748895046859,-151.0,0.00026,7]
[363841384,1748895046868,-151.0,0.00026,7]
[363841385,1748895046876,-151.0,0.00026,7]
[363841386,1748895046882,-151.0,0.00026,7]
[363841387,1748895046889,-151.0,0.00026,7]
[363841388,1748895046895,-151.0,0.00026,7]
[363841389,1748895046902,-151.0,0.00026,7]
[363841390,1748895046908,-151.0,0.00026,7]
[363841391,1748895046916,-151.0,0.00026,7]
[363841392,1748895046923,-215.256921,0.00026,7]
[363841393,1748895046932,-215.256921,0.00026,7]
[363841394,1748895046940,-151.0,0.00026,7]
[363841395,1748895046947,-151.0,0.00026,7]
[363841396,1748895046954,-151.0,0.00026,7]
[363841397,1748895046961,-151.0,0.00026,7]
[363841398,1748895046968,-171.474595,0.00026,7]
[363841399,1748895046975,-151.0,0.00026,7]
[363841400,1748895046984,-151.0,0.00026,7]
[363841401,1748895046993,-151.0,0.00026,7]
[363841402,1748895047000,-969.237927,0.00026,7]
[363841403,1748895047008,-969.237927,0.00026,7]
[363841404,1748895047015,-549.054344,0.00026,7]
[363841405,1748895047022,-549.054344,0.00026,7]
[363841406,1748895047028,-151.0,0.00026,7]
[363841407,1748895047035,-151.0,0.00026,7]
[363841408,1748895047043,-151.0,0.00026,7]
[363841409,1748895047050,-151.0,0.00026,7]
[363841410,1748895047057,-151.0,0.00026,7]
[363841411,1748895047065,-406.488113,0.00026,7]
[363841412,1748895047074,-151.0,0.00026,7]
[363841413,1748895047084,-406.488113,0.00026,7]
[363841414,1748895047093,-151.0,0.00026,7]
[363841415,1748895047102,-151.0,0.00026,7]
[363841416,1748895047111,-151.0,0.00026,7]
[363841417,1748895047121,-152.401211,0.00026,7]
[363841418,1748895047131,-157.980437,0.00026,7]
[363841419,1748895047140,-1232.286766,0.00026,7]
[363841420,1748895047149,-151.0,0.00026,7]
[363841421,1748895047160,-1232.286766,0.00026,7]
[363841422,1748895047169,-162.356194,0.00026,7]
[363841423,1748895047181,-151.0,0.00026,7]
[363841424,1748895047191,-162.356194,0.00026,7]
[363841425,1748895047200,-151.0,0.00026,7]
[363841426,1748895047209,-229.24158,0.00026,7]
[363841427,1748895047219,-176.040514,0.00026,7]
[363841428,1748895047229,-176.040514,0.00026,7]
[363841429,1748895047238,-721.727568,0.00026,7]
[363841430,1748895047248,-721.727568,0.00026,7]
[363841431,1748895047258,-151.0,0.00026,7]
[363841432,1748895047267,-151.0,0.00026,7]
[363841433,1748895047277,-151.0,0.00026,7]
[363841434,1748895047286,-227.187382,0.00026,7]
[363841435,1748895047295,-151.0,0.00026,7]
[363841436,1748895047303,-156.703589,0.00026,7]
[363841437,1748895047311,-151.0,0.00026,7]
[363841438,1748895047320,-151.0,0.00026,7]
[363841439,1748895047329,-152.154369,0.00026,7]
[363841440,1748895047338,-151.0,0.00026,7]
[363841441,1748895047346,-152.154369,0.00026,7]
[363841442,1748895047356,-1022.546757,0.00026,7]
[363841443,1748895047366,-1022.546757,0.00026,7]
[363841444,1748895047376,-151.0,0.00026,7]
[363841445,1748895047385,-151.0,0.00026,7]
[363841446,1748895047399,-1218.284469,0.00026,7]
[363841447,1748895047409,-1218.284469,0.00026,7]
[363841448,1748895047419,-160.432525,0.00026,7]
[363841449,1748895047433,-367.84843,0.00026,7]
[363841450,1748895047443,-151.0,0.00026,7]
[363841451,1748895047453,-367.84843,0.00026,7]
[363841452,1748895047463,-2475.385225,0.00026,7]
[363841453,1748895047473,-8244.59094,0.00026,7]
[363841454,1748895047482,-183.413195,0.00026,7]
[363841455,1748895047492,-183.413195,0.00026,7]
[363841456,1748895047500,-8244.59094,0.00026,7]
[363841457,1748895047511,-2475.385225,0.00026,7]
[363841458,1748895047520,-151.0,0.00026,7]
[363841459,1748895047530,-151.0,0.00026,7]
[363841460,1748895047539,-274.162833,0.00026,7]
[363841461,1748895047549,-151.0,0.00026,7]
[363841462,1748895047558,-274.162833,0.00026,7]
[363841463,1748895047568,-151.0,0.00026,7]
[363841464,1748895047577,-280.43296,0.00026,7]
[363841465,1748895047586,-866.78864707,0.00026,2]
[363841466,1748895047596,-151.0,0.00026,7]
[363841467,1748895047606,-280.43296,0.00026,7]
[363841468,1748895047615,-157.37828,0.00026,7]
[363841469,1748895047625,-151.0,0.00026,7]
[363841470,1748895047635,-1121.66877,0.00026,7]
[363841471,1748895047644,-1121.66877,0.00026,7]
[363841472,1748895047654,-159.818289,0.00026,7]
[363841473,1748895047663,-151.0,0.00026,7]
[363841474,1748895047832,-293.265844,0.00026,7]
[363841475,1748895047846,-243.174419,0.00026,7]
[363841476,1748895047856,-243.174419,0.00026,7]
[363841477,1748895047867,-151.0,0.00026,7]
[363841478,1748895047877,-151.0,0.00026,7]
[363841479,1748895047887,-202.0,0.0002601,2]
[363841480,1748895047896,-210.0,0.0002601,2]
[363841481,1748895047906,-28586.110271,0.00026043,3]
[363841482,1748895047916,-35015.3125036,0.00026053,3]
[363841483,1748895047925,-151.0,0.00026063,7]
[363841484,1748895047939,-151.0,0.00026063,7]
[363841485,1748895047948,-151.0,0.00026063,7]
[363841486,1748895047958,-151.0,0.00026063,7]
[363841487,1748895047968,-151.0,0.00026063,7]
[363841488,1748895047978,-406.488113,0.00026063,7]
[363841489,1748895047988,-406.488113,0.00026063,7]
[363841490,1748895047998,-151.0,0.00026063,7]
[363841491,1748895048008,-151.0,0.00026063,7]
[363841492,1748895048019,-151.0,0.00026063,7]
[363841493,1748895048029,-176.040514,0.00026063,7]
[363841494,1748895048038,-176.040514,0.00026063,7]
[363841495,1748895048048,-721.727568,0.00026063,7]
[363841496,1748895048059,-721.727568,0.00026063,7]
[363841497,1748895048069,-151.0,0.00026063,7]
[363841498,1748895048079,-151.0,0.00026063,7]
[363841499,1748895048089,-152.154369,0.00026063,7]
[363841500,1748895048100,-151.0,0.00026063,7]
[363841501,1748895048111,-151.0,0.00026063,7]
[363841502,1748895048121,-152.154369,0.00026063,7]
[363841503,1748895048131,-1022.546757,0.00026063,7]
[363841504,1748895048141,-1022.546757,0.00026063,7]
[363841505,1748895048151,-151.0,0.00026063,7]
[363841506,1748895048161,-154.970466,0.00026063,7]
[363841507,1748895048171,-1218.284469,0.00026063,7]
[363841508,1748895048185,-1218.284469,0.00026063,7]
[363841509,1748895048195,-367.84843,0.00026063,7]
[363841510,1748895048206,-367.84843,0.00026063,7]
[363841511,1748895048216,-2475.385225,0.00026063,7]
[363841512,1748895048226,-183.413195,0.00026063,7]
[363841513,1748895048235,-183.413195,0.00026063,7]
[363841514,1748895048245,-2475.385225,0.00026063,7]
[363841515,1748895048255,-151.0,0.00026063,7]
[363841516,1748895048266,-298.433642,0.00026063,7]
[363841517,1748895048276,-280.43296,0.00026063,7]
[363841518,1748895048286,-280.43296,0.00026063,7]
[363841519,1748895048297,-1121.66877,0.00026063,7]
[363841520,1748895048307,-1121.66877,0.00026063,7]
[363841521,1748895048319,-243.174419,0.00026063,7]
[363841522,1748895048329,-243.174419,0.00026063,7]
[363841523,1748895048339,-151.0,0.00026081,7]
[363841524,1748895048350,-151.0,0.00026081,7]
[363841525,1748895048361,-152.0,0.00026148,5]
[363841526,1748895048373,-274.162833,0.00026163,7]
[363841527,1748895048384,-274.162833,0.00026163,7]
[363841528,1748895048394,-286.637255,0.00026163,7]
[363841529,1748895048407,-697.46121346,0.00026216,2]
[363841530,1748895048418,-28586.110271,0.00026233,3]
[363841531,1748895048431,-500.0,0.00026243,2]
[363841532,1748895048447,-500.0,0.00026243,2]
[363841533,1748895048458,-500.0,0.00026243,2]
[363841534,1748895048469,-500.0,0.00026243,2]
[363841535,1748895048480,-500.0,0.00026243,2]
[363841536,1748895048490,-500.0,0.00026243,2]
[363841537,1748895048500,-168.92182356,0.00026243,2]
[363841538,1748895048552,460.0,0.00041095,120]
[363841539,1748895048756,460.0,0.00041095,120]
[363841540,1748895049018,420.0,0.00041095,120]
[363841541,1748895049091,460.0,0.00041095,120]
[363841542,1748895049245,460.0,0.00041095,120]
[363841543,1748895049498,420.0,0.00041095,120]
[363841544,1748895049650,460.0,0.00041095,120]
[363841545,1748895049700,-807.1,0.00024789,2]
[363841546,1748895049708,-331.07817644,0.00026243,2]
[363841547,1748895049715,-500.0,0.00026243,2]
[363841548,1748895049722,-159.93022356,0.00026243,2]
[363841549,1748895049732,-340.06977644,0.00026243,2]
[363841550,1748895049739,-500.0,0.00026243,2]
[363841551,1748895049746,-500.0,0.00026243,2]
[363841552,1748895049754,-500.0,0.00026243,2]
[363841553,1748895049761,-252.10622356,0.00026243,2]
[363841554,1748895049780,-247.89377644,0.00026243,2]
[363841555,1748895049790,-500.0,0.00026243,2]
[363841556,1748895049800,-500.0,0.00026243,2]
[363841557,1748895049810,-500.0,0.00026243,2]
[363841558,1748895049820,-500.0,0.00026243,2]
[363841559,1748895049830,-500.0,0.00026243,2]
[363841560,1748895049840,-500.0,0.00026243,2]
[363841561,1748895049850,-500.0,0.00026243,2]
[363841562,1748895049859,-500.0,0.00026243,2]
[363841563,1748895049869,-500.0,0.00026243,2]
[363841564,1748895049879,-500.0,0.00026243,2]
[363841565,1748895049891,-500.0,0.00026243,2]
[363841566,1748895049901,-500.0,0.00026243,2]
[363841567,1748895049910,-500.0,0.00026243,2]
[363841568,1748895049920,-500.0,0.00026243,2]
[363841569,1748895049930,-500.0,0.00026243,2]
[363841570,1748895049942,-500.0,0.00026243,2]
[363841571,1748895049951,-500.0,0.00026243,2]
[363841572,1748895049960,-500.0,0.00026243,2]
[363841573,1748895049970,-500.0,0.00026243,2]
[363841574,1748895049979,-500.0,0.00026243,2]
[363841575,1748895049988,-500.0,0.00026243,2]
[363841576,1748895049998,-500.0,0.00026243,2]
[363841577,1748895050007,-500.0,0.00026243,2]
[363841578,1748895050017,-500.0,0.00026243,2]
[363841579,1748895050026,-500.0,0.00026243,2]
[363841580,1748895050035,-500.0,0.00026243,2]
[363841581,1748895050044,-500.0,0.00026243,2]
[363841582,1748895050054,-500.0,0.00026243,2]
[363841583,1748895050063,-500.0,0.00026243,2]
[363841584,1748895050072,-500.0,0.00026243,2]
[363841585,1748895050082,-500.0,0.00026243,2]
[363841586,1748895050092,-500.0,0.00026243,2]
[363841587,1748895050101,-500.0,0.00026243,2]
[363841588,1748895050110,-500.0,0.00026243,2]
[363841589,1748895050119,-500.0,0.00026243,2]
[363841590,1748895050130,-500.0,0.00026243,2]
[363841591,1748895050139,-500.0,0.00026243,2]
[363841592,1748895050148,-500.0,0.00026243,2]
[363841593,1748895050158,-500.0,0.00026243,2]
[363841594,1748895050168,-500.0,0.00026243,2]
[363841595,1748895050178,-500.0,0.00026243,2]
[363841596,1748895050189,-500.0,0.00026243,2]
[363841597,1748895050199,-500.0,0.00026243,2]
[363841598,1748895050208,-500.0,0.00026243,2]
[363841599,1748895050217,-500.0,0.00026243,2]
[363841600,1748895050227,-500.0,0.00026243,2]
[363841601,1748895050237,-500.0,0.00026243,2]
[363841602,1748895050246,-500.0,0.00026243,2]
[363841603,1748895050255,-500.0,0.00026243,2]
[363841604,1748895050264,-500.0,0.00026243,2]
[363841605,1748895050274,-500.0,0.00026243,2]
[363841606,1748895050283,-500.0,0.00026243,2]
[363841607,1748895050292,-500.0,0.00026243,2]
[363841608,1748895050302,-500.0,0.00026243,2]
[363841609,1748895050451,-500.0,0.00026243,2]
[363841610,1748895050460,-500.0,0.00026243,2]
[363841611,1748895050470,-500.0,0.00026243,2]
[363841612,1748895050480,-500.0,0.00026243,2]
[363841613,1748895050490,-900.0,0.00026243,2]
[363841614,1748895050502,-503.23661329,0.00026276,2]
[363841615,1748895050511,-168.3888056,0.00026319,2]
[363841616,1748895050521,-501.09146016,0.00026367,2]
[363841617,1748895050531,-158.449678,0.00026369,7]
[363841618,1748895050543,-158.449678,0.00026369,7]
[363841619,1748895050552,-504.1629848,0.00026373,2]
[363841620,1748895050562,-500.0,0.00026373,2]
[363841621,1748895050572,-151.0,0.0002638,7]
[363841622,1748895050583,-151.0,0.0002638,7]
[363841623,1748895050592,-151.0,0.0002638,7]
[363841624,1748895050601,-151.0,0.0002638,7]
[363841625,1748895050611,-151.0,0.0002638,7]
[363841626,1748895050621,-151.0,0.0002638,7]
[363841627,1748895050631,-18712.82253286,0.0002638,3]
[363841628,1748895050847,460.0,0.00041095,120]
[363841629,1748895050890,420.0,0.00041095,120]
[363841630,1748895051156,460.0,0.00041095,120]
[363841631,1748895051278,512.11053235,0.00041095,120]
[363841632,1748895051321,420.0,0.00041095,120]
[363841633,1748895051725,460.0,0.00041095,120]
[363841634,1748895051966,420.0,0.00041095,120]
[363841635,1748895052091,460.0,0.00041095,120]
[363841636,1748895052211,2670.6,0.00041095,120]
[363841637,1748895052253,460.0,0.00041095,120]
[363841638,1748895052296,420.0,0.00041095,120]
[363841639,1748895052352,460.0,0.00041095,120]
[363841640,1748895052446,460.0,0.00041095,120]
[363841641,1748895052993,460.0,0.00041095,120]
[363841642,1748895053379,460.0,0.00041095,120]
[363841643,1748895053584,460.0,0.00041095,120]
[363841644,1748895053722,460.0,0.00041095,120]
[363841645,1748895054034,710.0,0.00041095,120]
[363841646,1748895054106,712.63,0.00041095,120]
[363841647,1748895054269,380.0,0.00041095,120]
[363841648,1748895054732,460.0,0.00041095,120]
[363841649,1748895054823,460.0,0.00041095,120]
[363841650,1748895056179,380.0,0.00041095,120]
[363841651,1748895056220,382.68097318,0.00041095,120]
[363841652,1748895056639,381.37269708,0.00041095,120]
[363841653,1748895056923,1990.49,0.00041095,120]
[363841654,1748895058289,460.0,0.00041095,120]
[363841655,1748895058416,626.25,0.00041095,120]
[363841656,1748895058623,380.0,0.00041095,120]
[363841657,1748895059218,460.0,0.00041095,120]
[363841658,1748895060356,460.0,0.00041095,120]
[363841659,1748895060398,460.0,0.00041095,120]
[363841660,1748895060447,3667.03,0.00041095,120]
[363841661,1748895061580,460.0,0.00041095,120]
[363841662,1748895061761,460.0,0.00041095,120]
[363841663,1748895062482,460.0,0.00041095,120]
[363841664,1748895063961,460.0,0.00041095,120]
[363841665,1748895064338,1357.72,0.00041095,120]
[363841666,1748895064449,5508.67,0.00041095,120]
[363841667,1748895067022,460.0,0.00041095,120]
[363841668,1748895067089,2672.07,0.00041095,120]
[363841669,1748895068282,771.31,0.00041095,120]
[363841670,1748895068513,460.0,0.00041095,120]
[363841671,1748895068676,460.0,0.00041095,120]
[363841672,1748895068733,806.47,0.00041095,120]
[363841673,1748895068871,380.0,0.00041095,120]
[363841674,1748895070231,460.0,0.00041095,120]
[363841675,1748895070286,460.0,0.00041095,120]
[363841676,1748895071130,380.0,0.00041095,120]
[363841677,1748895071629,387.60455757,0.00041095,120]
[363841678,1748895071756,1704.2,0.00041095,120]
[363841679,1748895073424,781.25,0.00041095,120]
[363841680,1748895073600,460.0,0.00041095,120]
[363841681,1748895074743,460.0,0.00041095,120]
[363841682,1748895075035,1328.77,0.00041095,120]
[363841683,1748895075644,460.0,0.00041095,120]
[363841684,1748895075905,381.53715198,0.00041095,120]
[363841685,1748895076368,460.0,0.00041095,120]
[363841686,1748895077565,460.0,0.00041095,120]
[363841687,1748895077882,384.76559368,0.00041095,120]
[363841688,1748895078388,829.82,0.00041095,120]
[363841689,1748895078456,460.0,0.00041095,120]
[363841690,1748895078544,460.0,0.00041095,120]
[363841691,1748895078765,460.0,0.00041095,120]
[363841692,1748895080511,460.0,0.00041095,120]
[363841693,1748895080934,609.8,0.00041095,120]
[363841694,1748895081026,460.0,0.00041095,120]
[363841695,1748895081232,460.0,0.00041095,120]
[363841696,1748895081517,460.0,0.00041095,120]
[363841697,1748895081911,460.0,0.00041095,120]
[363841698,1748895081953,8524.71,0.00041095,120]
[363841699,1748895081994,460.0,0.00041095,120]
[363841700,1748895083770,475.8,0.00041095,120]
[363841701,1748895084194,460.0,0.00041095,120]
[363841702,1748895084961,549.21813477,0.00041095,120]
[363841703,1748895085140,240.27371627,0.00041095,120]
[363841704,1748895085481,1000.0,0.00041095,120]
[363841705,1748895086079,1071.62,0.00041095,120]
[363841706,1748895086976,460.0,0.00041095,120]
[363841707,1748895087990,460.0,0.00041095,120]
[363841708,1748895088249,460.0,0.00041095,120]
[363841709,1748895088302,460.0,0.00041095,120]
[363841710,1748895088396,460.0,0.00041095,120]
[363841711,1748895089936,460.0,0.00041095,120]
[363841712,1748895090025,460.0,0.00041095,120]
[363841713,1748895090107,606.38,0.00041095,120]
[363841714,1748895090563,2849.62,0.00041095,120]
[363841715,1748895091332,460.0,0.00041095,120]
[363841716,1748895091368,460.0,0.00041095,120]
[363841717,1748895092222,460.0,0.00041095,120]
[363841718,1748895092839,460.0,0.00041095,120]
[363841719,1748895093152,1378.57,0.00041095,120]
[363841720,1748895093602,460.0,0.00041095,120]
[363841721,1748895093812,460.0,0.00041095,120]
[363841722,1748895093927,460.0,0.00041095,120]
[363841723,1748895094116,460.0,0.00041095,120]
[363841724,1748895095937,460.0,0.00041095,120]
[363841725,1748895096377,460.0,0.00041095,120]
[363841726,1748895096687,460.0,0.00041095,120]
[363841727,1748895096965,460.0,0.00041095,120]
[363841728,1748895097499,460.0,0.00041095,120]
[363841729,1748895098377,460.0,0.00041095,120]
[363841730,1748895099643,460.0,0.00041095,120]
[363841731,1748895099936,460.0,0.00041095,120]
[363841732,1748895100088,460.0,0.00041095,120]
[363841733,1748895100127,460.0,0.00041095,120]
[363841734,1748895100187,460.0,0.00041095,120]
[363841735,1748895100330,460.0,0.00041095,120]
[363841736,1748895100475,460.0,0.00041095,120]
[363841737,1748895100996,460.0,0.00041095,120]
[363841738,1748895102324,460.0,0.00041095,120]
[363841739,1748895102956,460.0,0.00041095,120]
[363841740,1748895105045,405.43249336,0.00041095,120]
[363841741,1748895105086,460.0,0.00041095,120]
[363841742,1748895105411,460.0,0.00041095,120]
[363841743,1748895105646,460.0,0.00041095,120]
[363841744,1748895105767,460.0,0.00041095,120]
[363841745,1748895106444,8365.16,0.00041095,120]
[363841746,1748895106627,460.0,0.00041095,120]
[363841747,1748895106681,507.68,0.00041095,120]
[363841748,1748895107298,380.0,0.00041095,120]
[363841749,1748895107588,460.0,0.00041095,120]
[363841750,1748895109428,460.0,0.00041095,120]
[363841751,1748895110281,380.0,0.00041095,120]
[363841752,1748895111558,460.0,0.00041095,120]
[363841753,1748895111690,460.0,0.00041095,120]
[363841754,1748895112028,1243.24,0.00041095,120]
[363841755,1748895112293,460.0,0.00041095,120]
[363841756,1748895112689,460.0,0.00041095,120]
[363841757,1748895112766,580.23,0.00041095,120]
[363841758,1748895114223,460.0,0.00041095,120]
[363841759,1748895115205,13505.32,0.00041095,120]
[363841760,1748895115801,460.0,0.00041095,120]
[363841761,1748895116283,380.0,0.00041095,120]
[363841762,1748895117139,460.0,0.00041095,120]
[363841763,1748895118172,1263.24,0.00041095,120]
[363841764,1748895118305,460.0,0.00041095,120]
[363841765,1748895118891,460.0,0.00041095,120]
[363841766,1748895119549,460.0,0.00041095,120]
[363841767,1748895120387,460.05931527,0.00041095,120]
[363841768,1748895120760,460.0,0.00041095,120]
[363841769,1748895120922,460.0,0.00041095,120]